fUSD/lending_fUSD_20250929
["ID","MTS","AMOUNT","RATE_DAILY","PERIOD"]
[388372167,1759129835383,-150.0,0.00018784,2]
[388372168,1759129835393,-150.0,0.000188,2]
[388372169,1759129835403,-150.0,0.000188,2]
[388372170,1759129835413,-150.0,0.00018815,2]
[388372171,1759129835423,-150.0,0.00018818,2]
[388372172,1759129835433,-150.0,0.00018824,2]
[388372173,1759129835443,-150.0,0.00018824,2]
[388372174,1759129835453,-150.0,0.00018829,2]
[388372175,1759129835463,-150.0,0.00018833,2]
[388372176,1759129835474,-150.0,0.00018857,2]
[388372177,1759129835485,-150.0,0.00018863,2]
[388372178,1759129835497,-150.0,0.0001887,2]
[388372179,1759129835507,-150.0,0.0001887,2]
[388372180,1759129835517,-150.0,0.00018878,2]
[388372181,1759129835527,-150.0,0.0001888,2]
[388372182,1759129835537,-150.0,0.00018889,2]
[388372183,1759129835547,-150.0,0.00018902,2]
[388372184,1759129835558,-150.0,0.00018909,2]
[388372185,1759129835569,-150.0,0.00018923,2]
[388372186,1759129835579,-150.0,0.00018927,2]
[388372187,1759129835591,-150.0,0.00018941,2]
[388372188,1759129835601,-150.0,0.00018941,2]
[388372189,1759129835611,-150.0,0.00018957,2]
[388372190,1759129835621,-150.0,0.00018957,2]
[388372191,1759129835632,-150.0,0.0001896,2]
[388372192,1759129835642,-150.0,0.00018963,2]
[388372193,1759129835652,-150.0,0.00018976,2]
[388372194,1759129835662,-150.0,0.0001898,2]
[388372195,1759129835672,-546.49628724,0.00018984,2]
[388372196,1759129835682,-279.0,0.00018985,2]
[388372197,1759129835691,-90446.92563434,0.00018995,2]
[388372198,1759129835705,-4907.44838,0.00018995,2]
[388372199,1759129835717,-1490.06508934,0.00018995,2]
[388372200,1759129835727,-152.08,0.00018996,2]
[388372201,1759129835736,-219.16672885,0.00018999,2]
[388372202,1759129835747,-644.5206314,0.00018999,2]
[388372203,1759129835757,-153.26391388,0.00018999,2]
[388372204,1759129835767,-211.0,0.00019,2]
[388372205,1759129835777,-150.0,0.00019,2]
[388372206,1759129835787,-150.0,0.00019,2]
[388372207,1759129835796,-150.0,0.00019,2]
[388372208,1759129835808,-150.0,0.00019,2]
[388372209,1759129835818,-700.0,0.00019,6]
[388372210,1759129835828,-1000.0,0.00019017,2]
[388372211,1759129835839,-150.0,0.0001902,2]
[388372212,1759129835849,-150.0,0.00019024,2]
[388372213,1759129835858,-150.0,0.00019037,2]
[388372214,1759129835869,-150.0,0.0001904,2]
[388372215,1759129835878,-150.0,0.00019043,2]
[388372216,1759129835888,-150.0,0.00019043,2]
[388372217,1759129835898,-150.0,0.00019059,2]
[388372218,1759129835909,-150.0,0.00019059,2]
[388372219,1759129835919,-150.0,0.00019073,2]
[388372220,1759129835929,-150.0,0.00019077,2]
[388372221,1759129835939,-1000.0,0.00019081,2]
[388372222,1759129835951,-258.51048247,0.00019088,2]
[388372223,1759129835961,-150.0,0.00019091,2]
[388372224,1759129835971,-150.0,0.00019098,2]
[388372225,1759129835981,-1400.0,0.000191,6]
[388372226,1759129835991,-150.0,0.00019111,2]
[388372227,1759129836001,-1000.0,0.00019115,2]
[388372228,1759129836010,-1000.0,0.00019115,2]
[388372229,1759129836020,-1000.0,0.00019115,2]
[388372230,1759129836030,-1000.0,0.00019115,2]
[388372231,1759129836040,-1000.0,0.00019115,2]
[388372232,1759129836050,-1000.0,0.00019115,2]
[388372233,1759129836060,-1000.0,0.00019115,2]
[388372234,1759129836070,-1052.86491092,0.00019115,2]
[388372235,1759129836081,-1000.0,0.00019115,2]
[388372236,1759129836090,-1000.0,0.00019115,2]
[388372237,1759129836100,-282.72023133,0.00019115,2]
[388372238,1759129836111,-150.0,0.0001912,2]
[388372239,1759129836121,-150.0,0.00019122,2]
[388372240,1759129836132,-150.0,0.0001913,2]
[388372241,1759129836142,-150.0,0.0001913,2]
[388372242,1759129836152,-181.02,0.00019133,2]
[388372243,1759129836162,-150.0,0.00019137,2]
[388372244,1759129836172,-150.0,0.00019143,2]
[388372245,1759129836183,-279.0,0.00019156,2]
[388372246,1759129836194,-1320.0,0.00019156,2]
[388372247,1759129836204,-150.0,0.00019167,2]
[388372248,1759129836214,-150.0,0.00019171,2]
[388372249,1759129836224,-500.0,0.00019173,2]
[388372250,1759129836234,-500.0,0.00019173,2]
[388372251,1759129836243,-500.0,0.00019173,2]
[388372252,1759129836264,-500.0,0.00019173,2]
[388372253,1759129836277,-500.0,0.00019173,2]
[388372254,1759129836287,-500.0,0.00019173,2]
[388372255,1759129836298,-500.0,0.00019173,2]
[388372256,1759129836309,-203.46208508,0.00019173,2]
[388372257,1759129836326,-500.0,0.00019173,2]
[388372258,1759129836341,-150.0,0.00019176,2]
[388372259,1759129836351,-150.0,0.00019176,2]
[388372260,1759129836362,-151.0,0.00019178,2]
[388372261,1759129836372,-4261.26,0.00019178,2]
[388372262,1759129836381,-300.0,0.00019178,2]
[388372263,1759129836391,-258.51048238,0.00019178,2]
[388372264,1759129836401,-150.0,0.00019182,4]
[388372265,1759129836411,-150.0,0.00019185,4]
[388372266,1759129836421,-151.0,0.00019188,2]
[388372267,1759129836431,-151.0,0.00019188,2]
[388372268,1759129836442,-151.0,0.00019188,2]
[388372269,1759129836454,-151.0,0.00019188,2]
[388372270,1759129836465,-151.532614,0.00019188,2]
[388372271,1759129836475,-151.532614,0.00019188,2]
[388372272,1759129836486,-151.532614,0.00019188,2]
[388372273,1759129836496,-151.532614,0.00019188,2]
[388372274,1759129836506,-151.0,0.00019188,2]
[388372275,1759129836516,-151.0,0.00019188,2]
[388372276,1759129836526,-151.0,0.00019188,2]
[388372277,1759129836536,-279.0,0.00019197,2]
[388372278,1759129836546,-2000.0,0.000192,2]
[388372279,1759129836556,-150.0,0.000192,4]
[388372280,1759129836566,-150.0,0.000192,4]
[388372281,1759129836576,-2100.0,0.000192,7]
[388372282,1759129836586,-150.0,0.00019216,4]
[388372283,1759129836597,-150.0,0.00019217,4]
[388372284,1759129836607,-150.0,0.00019217,4]
[388372285,1759129836618,-150.0,0.0001922,4]
[388372286,1759129836628,-150.0,0.00019231,4]
[388372287,1759129836638,-150.0,0.00019255,4]
[388372288,1759129836649,-150.0,0.00019259,4]
[388372289,1759129836659,-150.0,0.00019268,4]
[388372290,1759129836670,-258.51048238,0.00019268,2]
[388372291,1759129836681,-150.0,0.00019273,4]
[388372292,1759129836691,-150.0,0.0001928,4]
[388372293,1759129836702,-150.0,0.00019294,4]
[388372294,1759129836712,-150.0,0.00019294,4]
[388372295,1759129836722,-500.0,0.000193,2]
[388372296,1759129836733,-500.0,0.000193,2]
[388372297,1759129836745,-500.0,0.000193,2]
[388372298,1759129836755,-500.0,0.000193,2]
[388372299,1759129836765,-500.0,0.000193,2]
[388372300,1759129836776,-500.0,0.000193,2]
[388372301,1759129836786,-500.0,0.000193,2]
[388372302,1759129836796,-500.0,0.000193,2]
[388372303,1759129836806,-500.0,0.000193,2]
[388372304,1759129836816,-500.0,0.000193,2]
[388372305,1759129836826,-500.0,0.000193,2]
[388372306,1759129836836,-2800.0,0.000193,7]
[388372307,1759129836847,-150.0,0.00019304,4]
[388372308,1759129836857,-150.0,0.00019304,4]
[388372309,1759129836874,-150.0,0.00019317,4]
[388372310,1759129836884,-4113.0,0.00019326,2]
[388372311,1759129836894,-150.0,0.00019333,4]
[388372312,1759129836904,-150.0,0.00019333,4]
[388372313,1759129836915,-150.0,0.00019333,4]
[388372314,1759129836926,-281.0,0.00019351,2]
[388372315,1759129836936,-258.51048238,0.00019359,2]
[388372316,1759129836947,-150.0,0.0001936,4]
[388372317,1759129836959,-150.0,0.00019364,4]
[388372318,1759129836969,-150.0,0.00019366,4]
[388372319,1759129836979,-150.0,0.00019373,4]
[388372320,1759129836990,-281.0,0.00019375,2]
[388372321,1759129837001,-150.0,0.00019385,4]
[388372322,1759129837011,-279.0,0.00019387,2]
[388372323,1759129837021,-150.0,0.00019391,4]
[388372324,1759129837034,-150.0,0.00019391,4]
[388372325,1759129837046,-3500.0,0.000194,7]
[388372326,1759129837057,-420.0,0.00019404,2]
[388372327,1759129837072,-150.0,0.00019407,4]
[388372328,1759129837083,-150.0,0.00019412,4]
[388372329,1759129837093,-150.0,0.00019412,4]
[388372330,1759129837103,-153.0,0.00019414,2]
[388372331,1759129837115,-150.0,0.00019415,4]
[388372332,1759129837126,-150.0,0.00019429,4]
[388372333,1759129837135,-153.0,0.00019438,2]
[388372334,1759129837145,-153.0,0.00019438,2]
[388372335,1759129837155,-153.0,0.00019438,2]
[388372336,1759129837166,-153.0,0.00019438,2]
[388372337,1759129837175,-153.0,0.00019438,2]
[388372338,1759129837185,-153.0,0.00019438,2]
[388372339,1759129837195,-153.0,0.00019438,2]
[388372340,1759129837205,-153.0,0.00019438,2]
[388372341,1759129837214,-153.0,0.00019438,2]
[388372342,1759129837224,-153.0,0.00019438,2]
[388372344,1759129837235,-153.0,0.00019438,2]
[388372346,1759129837246,-153.0,0.00019438,2]
[388372349,1759129837261,-153.0,0.00019438,2]
[388372351,1759129837272,-153.0,0.00019438,2]
[388372353,1759129837282,-153.0,0.00019438,2]
[388372355,1759129837294,-153.0,0.00019438,2]
[388372357,1759129837306,-153.0,0.00019438,2]
[388372360,1759129837317,-153.0,0.00019438,2]
[388372363,1759129837327,-153.0,0.00019438,2]
[388372364,1759129837339,-153.0,0.00019438,2]
[388372365,1759129837351,-153.0,0.00019438,2]
[388372366,1759129837362,-151.0,0.00019438,2]
[388372368,1759129837372,-151.0,0.00019438,2]
[388372370,1759129837383,-151.0,0.00019438,2]
[388372372,1759129837394,-151.0,0.00019438,2]
[388372374,1759129837405,-151.0,0.00019438,2]
[388372376,1759129837415,-191.85664,0.00019438,2]
[388372377,1759129837426,-167.335364,0.00019438,2]
[388372378,1759129837436,-151.0,0.00019438,2]
[388372379,1759129837446,-153.0,0.00019438,2]
[388372380,1759129837456,-153.0,0.00019438,2]
[388372381,1759129837466,-153.0,0.00019438,2]
[388372408,1759129837946,-153.0,0.00019438,2]
[388372410,1759129837957,-153.0,0.00019438,2]
[388372412,1759129837966,-153.0,0.00019438,2]
[388372415,1759129837976,-153.0,0.00019438,2]
[388372417,1759129837986,-153.0,0.00019438,2]
[388372419,1759129837996,-153.0,0.00019438,2]
[388372421,1759129838006,-153.0,0.00019438,2]
[388372423,1759129838016,-153.0,0.00019438,2]
[388372425,1759129838026,-153.0,0.00019438,2]
[388372427,1759129838036,-153.0,0.00019438,2]
[388372428,1759129838050,-153.0,0.00019438,2]
[388372429,1759129838061,-153.0,0.00019438,2]
[388372430,1759129838071,-153.0,0.00019438,2]
[388372431,1759129838081,-153.0,0.00019438,2]
[388372432,1759129838091,-153.0,0.00019438,2]
[388372433,1759129838101,-153.0,0.00019438,2]
[388372434,1759129838111,-153.0,0.00019438,2]
[388372435,1759129838120,-153.0,0.00019438,2]
[388372436,1759129838132,-153.0,0.00019438,2]
[388372437,1759129838142,-153.0,0.00019438,2]
[388372438,1759129838152,-150.0,0.0001944,4]
[388372439,1759129838161,-258.51048238,0.00019449,2]
[388372440,1759129838171,-150.0,0.00019451,4]
[388372441,1759129838182,-150.0,0.00019455,4]
[388372442,1759129838191,-150.0,0.00019463,4]
[388372443,1759129838201,-150.0,0.00019478,4]
[388372444,1759129838211,-150.0,0.00019478,4]
[388372445,1759129838221,-150.0,0.00019481,4]
[388372446,1759129838231,-181.02,0.00019483,2]
[388372447,1759129838241,-150.0,0.0001949,4]
[388372448,1759129838251,-150.0,0.000195,4]
[388372449,1759129838262,-700.0,0.000195,7]
[388372450,1759129838272,-1680.0,0.000195,2]
[388372451,1759129838283,-150.0,0.00019512,4]
[388372452,1759129838292,-150.0,0.0001952,4]
[388372453,1759129838302,-150.0,0.00019529,4]
[388372454,1759129838312,-150.0,0.00019529,4]
[388372455,1759129838322,-150.0,0.00019538,4]
[388372456,1759129838332,-258.51048238,0.00019539,2]
[388372457,1759129838343,-150.0,0.00019545,4]
[388372458,1759129838353,-150.0,0.00019556,4]
[388372459,1759129838364,-150.0,0.00019561,4]
[388372460,1759129838374,-150.0,0.00019565,4]
[388372461,1759129838384,-150.0,0.00019565,4]
[388372462,1759129838394,-150.0,0.00019569,4]
[388372463,1759129838404,-1626.459,0.000196,2]
[388372464,1759129838415,-150.0,0.000196,4]
[388372465,1759129838425,-150.0,0.000196,4]
[388372466,1759129838434,-700.0,0.000196,7]
[388372467,1759129838445,-150.0,0.00019608,4]
[388372468,1759129838455,-150.0,0.0001961,4]
[388372469,1759129838465,-258.51048238,0.00019629,2]
[388372470,1759129838476,-150.0,0.0001963,4]
[388372471,1759129838486,-150.0,0.00019636,4]
[388372472,1759129838496,-281.0,0.00019642,2]
[388372473,1759129838506,-150.0,0.00019647,4]
[388372474,1759129838516,-150.0,0.00019647,4]
[388372475,1759129838526,-150.0,0.00019652,4]
[388372476,1759129838536,-150.0,0.00019652,4]
[388372477,1759129838547,-150.0,0.00019659,4]
[388372478,1759129838557,-1500.0,0.00019663,2]
[388372479,1759129838567,-1500.0,0.00019663,2]
[388372480,1759129838578,-1500.0,0.00019663,2]
[388372481,1759129838587,-1500.0,0.00019663,2]
[388372482,1759129838597,-1500.0,0.00019663,2]
[388372483,1759129838607,-1500.0,0.00019663,2]
[388372484,1759129838617,-1500.0,0.00019663,2]
[388372485,1759129838627,-1500.0,0.00019663,2]
[388372486,1759129838638,-1500.0,0.00019663,2]
[388372487,1759129838647,-150.0,0.00019667,4]
[388372488,1759129838657,-281.0,0.0001967,2]
[388372489,1759129838667,-150.0,0.0001968,4]
[388372490,1759129838677,-150.0,0.00019686,4]
[388372491,1759129838687,-150.0,0.00019692,4]
[388372492,1759129838696,-700.0,0.000197,7]
[388372493,1759129838706,-150.0,0.00019704,4]
[388372494,1759129838716,-150.0,0.00019707,4]
[388372495,1759129838727,-63464.73954944,0.0001971,2]
[388372496,1759129838737,-248.323178,0.0001971,2]
[388372497,1759129838748,-151.0,0.0001971,2]
[388372498,1759129838759,-155.35895,0.0001971,2]
[388372499,1759129838770,-180.90262314,0.0001971,2]
[388372500,1759129838781,-287.74492,0.0001971,2]
[388372501,1759129838791,-151.0,0.0001971,2]
[388372502,1759129838802,-151.0,0.0001971,2]
[388372503,1759129838814,-151.0,0.0001971,2]
[388372504,1759129838825,-151.0,0.0001971,2]
[388372505,1759129838836,-151.0,0.0001971,2]
[388372506,1759129838846,-151.0,0.0001971,2]
[388372507,1759129838857,-501.075256,0.0001971,2]
[388372508,1759129838868,-501.075256,0.0001971,2]
[388372509,1759129838878,-501.075256,0.0001971,2]
[388372510,1759129838888,-501.075256,0.0001971,2]
[388372511,1759129838899,-188.484166,0.0001971,2]
[388372512,1759129838910,-151.0,0.0001971,2]
[388372513,1759129838921,-151.0,0.0001971,2]
[388372514,1759129838936,-151.0,0.0001971,2]
[388372515,1759129838948,-151.532614,0.0001971,2]
[388372516,1759129838958,-151.532614,0.0001971,2]
[388372517,1759129838968,-151.532614,0.0001971,2]
[388372518,1759129838978,-151.532614,0.0001971,2]
[388372519,1759129838988,-151.0,0.0001971,2]
[388372520,1759129838999,-151.0,0.0001971,2]
[388372521,1759129839009,-151.0,0.0001971,2]
[388372522,1759129839019,-151.0,0.0001971,2]
[388372523,1759129839029,-151.0,0.0001971,2]
[388372524,1759129839040,-151.0,0.0001971,2]
[388372525,1759129839051,-151.0,0.0001971,2]
[388372526,1759129839063,-151.0,0.0001971,2]
[388372527,1759129839074,-151.0,0.0001971,2]
[388372528,1759129839084,-151.0,0.0001971,2]
[388372529,1759129839095,-151.0,0.0001971,2]
[388372530,1759129839104,-151.0,0.0001971,2]
[388372531,1759129839114,-298.740949,0.0001971,2]
[388372532,1759129839123,-151.0,0.0001971,2]
[388372533,1759129839136,-160.0,0.0001971,2]
[388372534,1759129839146,-160.0,0.0001971,2]
[388372535,1759129839155,-160.0,0.0001971,2]
[388372536,1759129839165,-160.0,0.0001971,2]
[388372537,1759129839175,-160.0,0.0001971,2]
[388372538,1759129839185,-160.0,0.0001971,2]
[388372539,1759129839194,-160.0,0.0001971,2]
[388372540,1759129839204,-160.0,0.0001971,2]
[388372541,1759129839214,-160.0,0.0001971,2]
[388372542,1759129839223,-160.0,0.0001971,2]
[388372543,1759129839233,-160.0,0.0001971,2]
[388372544,1759129839242,-160.0,0.0001971,2]
[388372545,1759129839253,-160.0,0.0001971,2]
[388372546,1759129839262,-160.0,0.0001971,2]
[388372547,1759129839272,-160.0,0.0001971,2]
[388372548,1759129839282,-160.0,0.0001971,2]
[388372549,1759129839291,-160.0,0.0001971,2]
[388372550,1759129839301,-160.0,0.0001971,2]
[388372551,1759129839311,-160.0,0.0001971,2]
[388372552,1759129839321,-160.0,0.0001971,2]
[388372553,1759129839332,-160.0,0.0001971,2]
[388372554,1759129839341,-160.0,0.0001971,2]
[388372555,1759129839351,-160.0,0.0001971,2]
[388372557,1759129839362,-160.0,0.0001971,2]
[388372560,1759129839372,-160.0,0.0001971,2]
[388372562,1759129839381,-160.0,0.0001971,2]
[388372563,1759129839391,-160.0,0.0001971,2]
[388372564,1759129839401,-160.0,0.0001971,2]
[388372565,1759129839411,-160.0,0.0001971,2]
[388372566,1759129839420,-160.0,0.0001971,2]
[388372567,1759129839429,-160.0,0.0001971,2]
[388372568,1759129839439,-160.0,0.0001971,2]
[388372569,1759129839449,-160.0,0.0001971,2]
[388372570,1759129839459,-160.0,0.0001971,2]
[388372571,1759129839470,-160.0,0.0001971,2]
[388372572,1759129839480,-160.0,0.0001971,2]
[388372573,1759129839491,-160.0,0.0001971,2]
[388372574,1759129839500,-160.0,0.0001971,2]
[388372575,1759129839510,-160.0,0.0001971,2]
[388372576,1759129839520,-222.480267,0.0001971,2]
[388372577,1759129839530,-150.0,0.00019714,4]
[388372578,1759129839541,-258.51048238,0.0001972,2]
[388372579,1759129839551,-1000.0,0.00019721,2]
[388372580,1759129839562,-1000.0,0.00019721,2]
[388372581,1759129839572,-414.01339148,0.00019721,2]
[388372582,1759129839583,-804.76527141,0.00019721,2]
[388372583,1759129839593,-372.72277718,0.00019721,2]
[388372584,1759129839711,-627.27722282,0.00019721,2]
[388372585,1759129839722,-1000.0,0.00019721,2]
[388372586,1759129839732,-1000.0,0.00019721,2]
[388372587,1759129839742,-1000.0,0.00019721,2]
[388372588,1759129839752,-150.0,0.00019725,4]
[388372589,1759129839762,-5637.62,0.00019726,2]
[388372590,1759129839772,-156.587,0.00019726,2]
[388372591,1759129839783,-281.0,0.00019726,2]
[388372592,1759129839793,-150.0,0.00019727,4]
[388372593,1759129839802,-150.0,0.00019739,4]
[388372594,1759129839812,-150.0,0.00019739,4]
[388372595,1759129839822,-150.0,0.00019756,4]
[388372596,1759129839833,-150.0,0.0001976,4]
[388372597,1759129839842,-150.0,0.00019765,4]
[388372598,1759129839852,-150.0,0.00019765,4]
[388372599,1759129839861,-150.0,0.00019778,4]
[388372600,1759129839871,-180.32256458,0.000198,2]
[388372601,1759129839881,-700.0,0.000198,7]
[388372602,1759129839890,-150.0,0.00019804,4]
[388372603,1759129839899,-150.0,0.00019805,4]
[388372604,1759129839909,-5231.40835987,0.0001981,2]
[388372633,1759129847235,-258.51048238,0.0001981,2]
[388372634,1759129847246,-150.0,0.00019818,4]
[388372635,1759129847256,-150.0,0.00019826,4]
[388372636,1759129847265,-150.0,0.00019826,4]
[388372637,1759129847275,-150.0,0.00019833,4]
[388372638,1759129847286,-281.0,0.00019837,2]
[388372639,1759129847295,-150.0,0.0001984,4]
[388372640,1759129847305,-150.0,0.00019843,4]
[388372641,1759129847315,-150.0,0.00019846,4]
[388372642,1759129847325,-1000.0,0.00019848,2]
[388372643,1759129847334,-547.73568567,0.00019848,2]
[388372644,1759129847345,-212.34742606,0.00019848,2]
[388372645,1759129847355,-1000.0,0.00019848,2]
[388372646,1759129847365,-1000.0,0.00019848,2]
[388372647,1759129847374,-1000.0,0.00019848,2]
[388372648,1759129847383,-564.62648908,0.00019848,2]
[388372649,1759129847513,-435.37351092,0.00019848,2]
[388372650,1759129847523,-1000.0,0.00019848,2]
[388372651,1759129847532,-155.49139641,0.00019848,2]
[388372652,1759129847542,-1000.0,0.00019848,2]
[388372653,1759129847551,-1000.0,0.00019848,2]
[388372654,1759129847560,-151.0,0.00019848,2]
[388372655,1759129847571,-43.56327434,0.00019848,2]
[388372656,1759129849898,-107.43672566,0.00019848,2]
[388372657,1759129849908,-151.0,0.00019848,2]
[388372658,1759129849919,-151.532614,0.00019848,2]
[388372659,1759129849929,-151.532614,0.00019848,2]
[388372660,1759129849939,-151.532614,0.00019848,2]
[388372661,1759129849948,-151.532614,0.00019848,2]
[388372662,1759129849959,-151.0,0.00019848,2]
[388372663,1759129849968,-202.455088,0.00019848,2]
[388372664,1759129849978,-281.0,0.00019848,2]
[388372665,1759129849989,-150.0,0.00019852,4]
[388372666,1759129849999,-150.0,0.00019854,4]
[388372667,1759129850009,-5652.60455899,0.00019861,2]
[388372668,1759129850021,-307.63662144,0.00019861,2]
[388372669,1759129850085,-615.79176526,0.00019861,2]
[388372670,1759129850097,-666.0,0.00019861,2]
[388372671,1759129850182,-4221.54599746,0.00019861,2]
[388372672,1759129850193,-1679.69,0.00019861,2]
[388372673,1759129853901,-500.0,0.0001778,2]
[388372674,1759129853911,-500.0,0.0001778,2]
[388372675,1759129853921,-500.0,0.0001778,2]
[388372676,1759129853931,-500.0,0.0001778,2]
[388372677,1759129853941,-500.0,0.0001778,2]
[388372678,1759129853951,-427.20637538,0.0001778,2]
[388372679,1759129853962,-500.0,0.0001778,2]
[388372680,1759129853971,-500.0,0.0001778,2]
[388372681,1759129853981,-500.0,0.0001778,2]
[388372682,1759129853991,-500.0,0.0001778,2]
[388372683,1759129854002,-127.42172658,0.0001778,2]
[388372684,1759129854014,-298.67297261,0.0001778,2]
[388372685,1759129854025,-73.90530081,0.0001778,2]
[388372686,1759129854034,-312.38972488,0.0001778,2]
[388372687,1759129854044,-155.47112933,0.0001778,2]
[388372688,1759129854056,-344.52887067,0.0001778,2]
[388372689,1759129854066,-500.0,0.0001778,2]
[388372690,1759129854076,-13.70497431,0.0001778,2]
[388372696,1759129930955,-224.67999092,0.00017679,2]
[388372697,1759129930986,-13384.32000908,0.00017747,2]
[388372749,1759130466476,161.92,9.043e-05,2]
[388372775,1759130797783,-2233.76272964,0.000172,2]
[388372786,1759130888719,-163.87,0.00016915,2]
[388372787,1759130894261,-163.87,0.00016915,2]
[388372790,1759130902314,-163.87,0.00016915,2]
[388372793,1759130910254,-163.87,0.00016915,2]
[388372809,1759130916297,-645.86195549,0.00016915,2]
[388372815,1759130923047,1762.11381314,0.00010136,2]
[388372821,1759130927245,4833.09382599,0.0001,2]
[388372824,1759130933952,-150.85,0.00016915,2]
[388372826,1759130940622,-171.74865833,0.00016915,2]
[388372960,1759131034062,-231.710351,0.00016913,2]
[388372961,1759131034072,-1200.0,0.00016998,2]
[388372962,1759131034083,-300.0,0.00016998,2]
[388372963,1759131034093,-300.0,0.00016998,2]
[388372964,1759131034103,-500.0,0.00016999,2]
[388372965,1759131034114,-500.0,0.00016999,2]
[388372966,1759131034124,-500.0,0.00016999,2]
[388372967,1759131034134,-500.0,0.00016999,2]
[388372968,1759131034144,-500.0,0.00016999,2]
[388372969,1759131034157,-500.0,0.00016999,2]
[388372970,1759131034166,-500.0,0.00016999,2]
[388372971,1759131034176,-500.0,0.00016999,2]
[388372972,1759131034187,-500.0,0.00016999,2]
[388372973,1759131034197,-500.0,0.00016999,2]
[388372974,1759131034207,-500.0,0.00016999,2]
[388372975,1759131034216,-585.73189999,0.00016999,2]
[388372976,1759131034226,-500.0,0.00016999,2]
[388372977,1759131034235,-500.0,0.00016999,2]
[388372978,1759131034245,-500.0,0.00016999,2]
[388372979,1759131034255,-500.0,0.00016999,2]
[388372980,1759131034265,-500.0,0.00016999,2]
[388372981,1759131034273,-500.0,0.00016999,2]
[388372982,1759131034283,-500.0,0.00016999,2]
[388372983,1759131034292,-500.0,0.00016999,2]
[388372984,1759131034301,-500.0,0.00016999,2]
[388372985,1759131034311,-500.0,0.00016999,2]
[388372986,1759131034320,-500.0,0.00016999,2]
[388372987,1759131034329,-500.0,0.00016999,2]
[388372988,1759131034339,-206.14383723,0.00016999,2]
[388372989,1759131034348,-500.0,0.00016999,2]
[388372990,1759131034358,-500.0,0.00016999,2]
[388372991,1759131034368,-500.0,0.00016999,2]
[388372992,1759131034378,-500.0,0.00016999,2]
[388372993,1759131034388,-500.0,0.00016999,2]
[388372994,1759131034399,-500.0,0.00016999,2]
[388372995,1759131034408,-500.0,0.00016999,2]
[388372996,1759131034418,-500.0,0.00016999,2]
[388372997,1759131034428,-500.0,0.00016999,2]
[388372998,1759131034437,-500.0,0.00016999,2]
[388372999,1759131034447,-500.0,0.00016999,2]
[388373000,1759131034456,-500.0,0.00016999,2]
[388373001,1759131034465,-500.0,0.00016999,2]
[388373002,1759131034475,-500.0,0.00016999,2]
[388373003,1759131034484,-500.0,0.00016999,2]
[388373004,1759131034494,-250.0,0.00016999,2]
[388373005,1759131034504,-757.5562516,0.00017,2]
[388373006,1759131034517,-2072.69165349,0.00017,2]
[388373007,1759131034527,-1120.31336356,0.00017099,2]